[Event "21st Sants Open 2019"]
[Site "Cotxeres de Sants"]
[Date "2019.08.25"]
[Round "3.8"]
[White "Vidarte Morales, Arturo"]
[Black "Gordon, Stephen J"]
[Result "1/2-1/2"]
[ECO "A04"]
[WhiteElo "2355"]
[BlackElo "2520"]
[Annotator "ChessBase"]
[PlyCount "103"]
[EventDate "2019.08.22"]
[EventType "swiss"]
[EventCountry "ESP"]
[SourceTitle "playchess.com"]
[Source "ChessBase"]
[SourceQuality "1"]
[TimeControl "40/5400+30:1800+30"]

1. Nf3 {[%emt 0:00:00]} e6 {[%emt 0:08:22]} 2. g3 {[%emt 0:00:00]} b5 {[%emt 0:00:14]} 3. Bg2 {[%emt 0:00:00]} Bb7 {[%emt 0:00:03]} 4. O-O {[%emt 0:00:09]} c5 {[%emt 0:01:37]} 5. d3 {[%emt 0:00:05]} Nf6 {[%emt 0:03:45]} 6. e4 {[%emt 0:00:19]} d6 {[%emt 0:00:23]} 7. Qe2 {[%emt 0:00:54]} Be7 {[%emt 0:01:34]} 8. Na3 {[%emt 0:01:00]} a6 {[%emt 0:05:03]} 9. c3 {[%emt 0:01:29]} O-O {[%emt 0:00:41]} 10. Nc2 {[%emt 0:01:10]} Nbd7 {[%emt 0:03:00]} 11. Nd2 {[%emt 0:01:07]} e5 {[%emt 0:11:05]} 12. Ne3 {[%emt 0:00:37]} g6 {[%emt 0:03:01]} 13. c4 {[%emt 0:11:22]} Re8 {[%emt 0:11:26]} 14. b3 {[%emt 0:09:06]} Bf8 {[%emt 0:01:38]} 15. Bb2 {[%emt 0:02:03]} Bh6 {[%emt 0:07:26]} 16. Rfd1 {[%emt 0:10:02]} Nb8 {[%emt 0:03:03]} 17. Nd5 {[%emt 0:00:51]} Nc6 {[%emt 0:01:12]} 18. Nf1 {[%emt 0:05:51]} Nxd5 {[%emt 0:01:04]} 19. cxd5 {[%emt 0:00:23]} Nd4 {[%emt 0:00:01]} 20. Bxd4 {[%emt 0:02:12]} cxd4 {[%emt 0:00:11]} 21. a4 {[%emt 0:04:15]} Qb6 {[%emt 0:04:15]} 22. Bh3 {[%emt 0:01:27]} Bc8 {[%emt 0:00:57]} 23. Bxc8 {[%emt 0:02:03]} Rexc8 {[%emt 0:02:08]} 24. b4 {[%emt 0:04:49]} a5 {[%emt 0:08:02]} 25. Rdb1 {[%emt 0:29:09]} Rcb8 {[%emt 0:08:21]} 26. Qe1 {[%emt 0:07:06]} Kg7 {[%emt 0:07:53]} 27. bxa5 {[%emt 0:02:14]} Rxa5 {[%emt 0:02:52]} 28. axb5 {[%emt 0:00:49]} Rxa1 {[%emt 0:00:17]} 29. Rxa1 {[%emt 0:00:04]} Qxb5 {[%emt 0:00:02]} 30. Qe2 {[%emt 0:00:20]} Rb7 {[%emt 0:01:50]} 31. h4 {[%emt 0:00:33]} Rc7 {[%emt 0:00:31]} 32. Qf3 {[%emt 0:02:11]} Bc1 {[%emt 0:02:08]} 33. Kg2 {[%emt 0:00:30]} h5 {[%emt 0:00:26]} 34. Ra8 {[%emt 0:01:07]} Qd7 {[%emt 0:01:20]} 35. Ra6 {[%emt 0:00:15]} Bh6 {[%emt 0:00:51]} 36. Rb6 {[%emt 0:00:36]} Rc3 {[%emt 0:00:30]} 37. Ra6 {[%emt 0:00:40]} Qg4 {[%emt 0:00:38]} 38. Qxg4 {[%emt 0:01:35]} hxg4 {[%emt 0:00:02]} 39. Rxd6 {[%emt 0:00:21]} Rxd3 {[%emt 0:00:08]} 40. Ra6 {[%emt 0:00:00]} Rb3 {[%emt 0:00:00]} 41. d6 {[%emt 0:00:21]} Rb7 {[%emt 0:04:37]} 42. Ra5 {[%emt 0:02:24]} Rd7 {[%emt 0:06:21]} 43. Rd5 {[%emt 0:00:45]} Kf6 {[%emt 0:08:17]} 44. Nh2 {[%emt 0:01:27]} Ke6 {[%emt 0:00:23]} 45. Nxg4 {[%emt 0:00:11]} Bg7 {[%emt 0:00:32]} 46. f3 {[%emt 0:00:19]} f5 {[%emt 0:05:16]} 47. Nf2 {[%emt 0:02:31]} Bf8 {[%emt 0:00:40]} 48. Nh3 {[%emt 0:07:50]} Bh6 {[%emt 0:03:56]} 49. Nf2 {[%emt 0:00:12]} Bf8 {[%emt 0:00:14]} 50. Nh3 {[%emt 0:00:12]} Bh6 {[%emt 0:00:44]} 51. Nf2 {[%emt 0:00:20]} Bf8 {[%emt 0:00:16]} 52. Nh3 1/2-1/2

[Event "21st Sants Open 2019"]
[Site "Cotxeres de Sants"]
[Date "2019.08.25"]
[Round "3.9"]
[White "Krysa, Leandro"]
[Black "Guerra Rivera, Salvador"]
[Result "1-0"]
[ECO "A16"]
[WhiteElo "2516"]
[BlackElo "2344"]
[Annotator "ChessBase"]
[PlyCount "47"]
[EventDate "2019.08.22"]
[EventType "swiss"]
[EventCountry "ESP"]
[SourceTitle "playchess.com"]
[Source "ChessBase"]
[SourceQuality "1"]
[TimeControl "40/5400+30:1800+30"]

1. c4 {[%emt 0:00:00]} Nf6 {[%emt 0:01:43]} 2. Nc3 {[%emt 0:00:00]} e5 {[%emt 0:02:14]} 3. Nf3 {[%emt 0:00:12]} d6 {[%emt 0:00:13]} 4. g3 {[%emt 0:02:35]} g6 {[%emt 0:00:42]} 5. Bg2 {[%emt 0:01:22]} Bg7 {[%emt 0:00:09]} 6. d4 {[%emt 0:01:43]} Nbd7 {[%emt 0:04:08]} 7. O-O {[%emt 0:00:12]} O-O {[%emt 0:00:11]} 8. b3 {[%emt 0:00:11]} exd4 {[%emt 0:03:15]} 9. Nxd4 {[%emt 0:00:06]} Re8 {[%emt 0:00:11]} 10. Qc2 {[%emt 0:07:45]} a5 {[%emt 0:03:42]} 11. Ba3 {[%emt 0:02:19]} Nc5 {[%emt 0:04:21]} 12. Rad1 {[%emt 0:03:10]} Nfd7 {[%emt 0:04:45]} 13. Ndb5 {[%emt 0:01:03]} Ne6 {[%emt 0:03:56]} 14. Rd2 {[%emt 0:08:12]} Ndc5 {[%emt 0:05:02]} 15. e4 {[%emt 0:14:14]} Na6 {[%emt 0:14:04]} 16. Bb2 {[%emt 0:05:03]} Nec5 {[%emt 0:07:35]} 17. Qd1 {[%emt 0:09:04]} f5 {[%emt 0:06:25]} 18. Re1 {[%emt 0:01:33]} fxe4 {[%emt 0:04:13]} 19. Nxe4 {[%emt 0:00:41]} Bxb2 {[%emt 0:04:46]} 20. Rxb2 {[%emt 0:00:32]} Bf5 {[%emt 0:00:57]} 21. Nxc5 {[%emt 0:06:01]} Rxe1+ {[%emt 0:02:30]} 22. Qxe1 {[%emt 0:00:04]} Nxc5 {[%emt 0:00:04]} 23. Bd5+ {[%emt 0:00:43]} Kh8 {[%emt 0:02:07]} 24. Qc3+ {[%emt 0:00:36]} 1-0

[Event "21st Sants Open 2019"]
[Site "Cotxeres de Sants"]
[Date "2019.08.25"]
[Round "3.10"]
[White "Salinas Herrera, Pablo"]
[Black "Vergara Jofre, Felipe"]
[Result "1-0"]
[ECO "C84"]
[WhiteElo "2506"]
[BlackElo "2339"]
[Annotator "ChessBase"]
[PlyCount "55"]
[EventDate "2019.08.22"]
[EventType "swiss"]
[EventCountry "ESP"]
[SourceTitle "playchess.com"]
[Source "ChessBase"]
[SourceQuality "1"]
[TimeControl "40/5400+30:1800+30"]

1. e4 {[%emt 0:06:15]} e5 {[%emt 0:01:49]} 2. Nf3 {[%emt 0:00:05]} Nc6 {[%emt 0:00:01]} 3. Bb5 {[%emt 0:00:08]} a6 {[%emt 0:00:04]} 4. Ba4 {[%emt 0:00:03]} Nf6 {[%emt 0:00:20]} 5. O-O {[%emt 0:00:05]} Be7 {[%emt 0:00:06]} 6. d3 {[%emt 0:00:05]} b5 {[%emt 0:00:04]} 7. Bb3 {[%emt 0:00:04]} d6 {[%emt 0:00:02]} 8. a3 {[%emt 0:00:06]} O-O {[%emt 0:00:12]} 9. Nc3 {[%emt 0:00:04]} Rb8 {[%emt 0:00:03]} 10. Be3 {[%emt 0:15:53]} Na5 {[%emt 0:00:11]} 11. Ba2 {[%emt 0:00:06]} c5 {[%emt 0:00:02]} 12. Nd5 {[%emt 0:00:06]} c4 {[%emt 0:02:00]} 13. Nxe7+ {[%emt 0:09:01]} Qxe7 {[%emt 0:00:07]} 14. Qe1 {[%emt 0:00:04]} Qc7 {[%emt 0:30:00]} 15. Bg5 {[%emt 0:02:40]} Be6 {[%emt 0:05:10]} 16. Bxf6 {[%emt 0:10:25]} gxf6 {[%emt 0:00:03]} 17. Nh4 {[%emt 0:00:44]} d5 {[%emt 0:15:38]} 18. exd5 {[%emt 0:13:29]} Bxd5 {[%emt 0:00:02]} 19. Qd2 {[%emt 0:00:22]} Be6 {[%emt 0:16:16]} 20. Qh6 {[%emt 0:05:28]} Nc6 {[%emt 0:02:14]} 21. Rae1 {[%emt 0:04:08]} Qd8 {[%emt 0:04:14]} 22. dxc4 {[%emt 0:02:37]} bxc4 {[%emt 0:00:38]} 23. Bxc4 {[%emt 0:00:18]} Ne7 {[%emt 0:03:06]} 24. Bd3 {[%emt 0:00:13]} Ng6 {[%emt 0:01:43]} 25. Bxg6 {[%emt 0:11:52]} fxg6 {[%emt 0:00:28]} 26. Nxg6 {[%emt 0:01:02]} Re8 {[%emt 0:02:43]} 27. Nh4 {[%emt 0:02:40]} Kh8 {[%emt 0:06:01]} 28. Rd1 {[%emt 0:00:17]} 1-0

[Event "21st Sants Open 2019"]
[Site "Cotxeres de Sants"]
[Date "2019.08.25"]
[Round "3.11"]
[White "Garcia Ramos, Daniel"]
[Black "Harsha Bharathakoti"]
[Result "1-0"]
[ECO "B54"]
[WhiteElo "2348"]
[BlackElo "2489"]
[Annotator "ChessBase"]
[PlyCount "99"]
[EventDate "2019.08.22"]
[EventType "swiss"]
[EventCountry "ESP"]
[SourceTitle "playchess.com"]
[Source "ChessBase"]
[SourceQuality "1"]
[TimeControl "40/5400+30:1800+30"]

1. e4 {[%emt 0:00:00]} c5 {[%emt 0:04:04]} 2. Nf3 {[%emt 0:00:00]} d6 {[%emt 0:00:12]} 3. d4 {[%emt 0:00:43]} cxd4 {[%emt 0:00:06]} 4. Nxd4 {[%emt 0:00:04]} Nf6 {[%emt 0:00:08]} 5. f3 {[%emt 0:00:49]} e5 {[%emt 0:00:08]} 6. Nb3 {[%emt 0:00:06]} d5 {[%emt 0:00:56]} 7. Bg5 {[%emt 0:00:11]} d4 {[%emt 0:01:55]} 8. c3 {[%emt 0:00:49]} Nc6 {[%emt 0:03:05]} 9. Bb5 {[%emt 0:00:11]} h6 {[%emt 0:07:42]} 10. Bh4 {[%emt 0:07:44]} Qb6 {[%emt 0:19:15]} 11. a4 {[%emt 0:11:20]} Be6 {[%emt 0:13:59]} 12. N1d2 {[%emt 0:05:23]} dxc3 {[%emt 0:11:56]} 13. bxc3 {[%emt 0:00:28]} Be7 {[%emt 0:00:52]} 14. Bf2 {[%emt 0:01:38]} Qc7 {[%emt 0:00:03]} 15. O-O {[%emt 0:04:03]} O-O {[%emt 0:00:39]} 16. Qe2 {[%emt 0:02:19]} Nb8 {[%emt 0:12:35]} 17. Bc4 {[%emt 0:08:49]} Bxc4 {[%emt 0:00:04]} 18. Nxc4 {[%emt 0:00:08]} Nbd7 {[%emt 0:00:13]} 19. Rfb1 {[%emt 0:18:36]} Rfc8 {[%emt 0:02:22]} 20. Nbd2 {[%emt 0:02:30]} Bc5 {[%emt 0:01:55]} 21. a5 {[%emt 0:00:51]} Rab8 {[%emt 0:05:46]} 22. Ra2 {[%emt 0:07:19]} b5 {[%emt 0:03:31]} 23. axb6 {[%emt 0:06:12]} Nxb6 {[%emt 0:00:05]} 24. Ne3 {[%emt 0:00:24]} Nbd7 {[%emt 0:01:27]} 25. Rba1 {[%emt 0:00:38]} Kh7 {[%emt 0:00:53]} 26. g3 {[%emt 0:02:43]} Rb7 {[%emt 0:00:31]} 27. Kg2 {[%emt 0:01:12]} g6 {[%emt 0:01:39]} 28. Ra6 {[%emt 0:03:08]} Kg7 {[%emt 0:00:56]} 29. R1a2 {[%emt 0:02:03]} Rcb8 {[%emt 0:03:32]} 30. Ndc4 {[%emt 0:03:08]} Rb3 {[%emt 0:00:38]} 31. Nd5 {[%emt 0:01:59]} Nxd5 {[%emt 0:00:06]} 32. exd5 {[%emt 0:00:03]} Bxf2 {[%emt 0:01:04]} 33. Rc6 {[%emt 0:00:07]} Qd8 {[%emt 0:00:35]} 34. Qxf2 {[%emt 0:00:22]} Nb6 {[%emt 0:03:17]} 35. Nxe5 {[%emt 0:03:34]} Qxd5 {[%emt 0:00:19]} 36. Rc5 {[%emt 0:00:15]} Qd6 {[%emt 0:00:59]} 37. Rd2 {[%emt 0:01:44]} Qe6 {[%emt 0:00:19]} 38. Qd4 {[%emt 0:00:09]} Kh7 {[%emt 0:00:40]} 39. Rc7 {[%emt 0:00:16]} Rf8 {[%emt 0:00:03]} 40. Qd6 {[%emt 0:00:00]} Qxd6 {[%emt 0:00:00]} 41. Rxd6 {[%emt 0:06:10]} Kg8 {[%emt 0:01:35]} 42. c4 {[%emt 0:00:43]} Rc3 {[%emt 0:02:07]} 43. f4 {[%emt 0:04:03]} h5 {[%emt 0:03:17]} 44. Kh3 {[%emt 0:00:37]} Rc2 {[%emt 0:00:45]} 45. Rdc6 {[%emt 0:01:00]} Ra2 {[%emt 0:02:15]} 46. Rf6 {[%emt 0:01:15]} Rc2 {[%emt 0:00:13]} 47. Rfc6 {[%emt 0:05:01]} Ra2 {[%emt 0:00:05]} 48. Rb7 {[%emt 0:00:37]} Nc8 {[%emt 0:14:58]} 49. c5 {[%emt 0:00:28]} Re8 {[%emt 0:00:04]} 50. Rcc7 {[%emt 0:00:34]} 1-0

[Event "21st Sants Open 2019"]
[Site "Cotxeres de Sants"]
[Date "2019.08.25"]
[Round "3.12"]
[White "Arjun Kalyan"]
[Black "Vehi Bach, Victor Manuel"]
[Result "1-0"]
[ECO "B81"]
[WhiteElo "2482"]
[BlackElo "2331"]
[Annotator "ChessBase"]
[PlyCount "39"]
[EventDate "2019.08.22"]
[EventType "swiss"]
[EventCountry "ESP"]
[SourceTitle "playchess.com"]
[Source "ChessBase"]
[SourceQuality "1"]
[TimeControl "40/5400+30:1800+30"]

1. e4 {[%emt 0:00:00]} c5 {[%emt 0:00:00]} 2. Nf3 {[%emt 0:00:00]} e6 {[%emt 0:00:00]} 3. d4 {[%emt 0:00:00]} cxd4 {[%emt 0:00:00]} 4. Nxd4 {[%emt 0:00:00]} Nf6 {[%emt 0:00:01]} 5. Nc3 {[%emt 0:00:06]} d6 {[%emt 0:00:07]} 6. g4 {[%emt 0:00:19]} h6 {[%emt 0:00:19]} 7. Rg1 {[%emt 0:00:25]} Nc6 {[%emt 0:01:49]} 8. Be3 {[%emt 0:00:21]} a6 {[%emt 0:14:24]} 9. Nxc6 {[%emt 0:00:39]} bxc6 {[%emt 0:00:09]} 10. Qf3 {[%emt 0:00:08]} Be7 {[%emt 0:19:53]} 11. O-O-O {[%emt 0:03:27]} d5 {[%emt 0:09:16]} 12. h4 {[%emt 0:04:22]} Qa5 {[%emt 0:10:43]} 13. g5 {[%emt 0:16:25]} hxg5 {[%emt 0:00:11]} 14. hxg5 {[%emt 0:08:24]} Nd7 {[%emt 0:00:08]} 15. exd5 {[%emt 0:01:57]} cxd5 {[%emt 0:01:55]} 16. Bd4 {[%emt 0:02:29]} Bb7 {[%emt 0:10:17]} 17. Bh3 {[%emt 0:03:08]} Rxh3 {[%emt 0:17:12]} 18. Qxh3 {[%emt 0:00:50]} e5 {[%emt 0:00:05]} 19. Qh8+ {[%emt 0:10:38]} Bf8 {[%emt 0:00:11]} 20. Bxe5 {[%emt 0:00:44]} 1-0

[Event "21st Sants Open 2019"]
[Site "Cotxeres de Sants"]
[Date "2019.08.25"]
[Round "3.13"]
[White "Aizpurua, Patrick"]
[Black "Harika, Dronavalli"]
[Result "0-1"]
[ECO "E62"]
[WhiteElo "2261"]
[BlackElo "2495"]
[Annotator "ChessBase"]
[PlyCount "106"]
[EventDate "2019.08.22"]
[EventType "swiss"]
[EventCountry "ESP"]
[SourceTitle "playchess.com"]
[Source "ChessBase"]
[SourceQuality "1"]
[TimeControl "40/5400+30:1800+30"]

1. d4 {[%emt 0:20:43]} Nf6 {[%emt 0:00:00]} 2. c4 {[%emt 0:00:45]} g6 {[%emt 0:00:00]} 3. g3 {[%emt 0:00:20]} Bg7 {[%emt 0:00:12]} 4. Bg2 {[%emt 0:00:07]} O-O {[%emt 0:00:15]} 5. Nf3 {[%emt 0:00:05]} d6 {[%emt 0:01:10]} 6. O-O {[%emt 0:00:26]} Nc6 {[%emt 0:03:53]} 7. Nc3 {[%emt 0:07:37]} Bg4 {[%emt 0:04:11]} 8. h3 {[%emt 0:02:48]} Bxf3 {[%emt 0:00:05]} 9. Bxf3 {[%emt 0:00:05]} Nd7 {[%emt 0:00:08]} 10. e3 {[%emt 0:10:42]} e5 {[%emt 0:00:24]} 11. Rb1 {[%emt 0:11:25]} f5 {[%emt 0:12:29]} 12. dxe5 {[%emt 0:08:06]} dxe5 {[%emt 0:01:33]} 13. Bxc6 {[%emt 0:10:58]} bxc6 {[%emt 0:00:15]} 14. e4 {[%emt 0:00:06]} f4 {[%emt 0:06:36]} 15. Qg4 {[%emt 0:02:07]} Qe8 {[%emt 0:14:37]} 16. gxf4 {[%emt 0:06:25]} Nf6 {[%emt 0:07:06]} 17. Qg2 {[%emt 0:06:41]} Nh5 {[%emt 0:01:59]} 18. fxe5 {[%emt 0:01:38]} Qxe5 {[%emt 0:02:01]} 19. Ne2 {[%emt 0:00:55]} Rae8 {[%emt 0:00:43]} 20. Be3 {[%emt 0:00:10]} Qxe4 {[%emt 0:02:22]} 21. Qxe4 {[%emt 0:00:05]} Rxe4 {[%emt 0:00:03]} 22. b3 {[%emt 0:00:17]} a5 {[%emt 0:00:11]} 23. Rbd1 {[%emt 0:00:15]} a4 {[%emt 0:01:20]} 24. Rd7 {[%emt 0:00:16]} axb3 {[%emt 0:02:49]} 25. axb3 {[%emt 0:00:11]} Be5 {[%emt 0:01:25]} 26. Rfd1 {[%emt 0:01:18]} Bd6 {[%emt 0:01:44]} 27. c5 {[%emt 0:01:36]} Be5 {[%emt 0:01:05]} 28. Kg2 {[%emt 0:01:20]} Nf6 {[%emt 0:02:26]} 29. Rd8 {[%emt 0:01:40]} Nd5 {[%emt 0:01:25]} 30. Rxf8+ {[%emt 0:00:36]} Kxf8 {[%emt 0:00:03]} 31. Bh6+ {[%emt 0:02:11]} Kf7 {[%emt 0:02:23]} 32. Nc1 {[%emt 0:00:55]} Bf6 {[%emt 0:00:54]} 33. Bd2 {[%emt 0:01:37]} Rd4 {[%emt 0:00:41]} 34. Ne2 {[%emt 0:00:14]} Rd3 {[%emt 0:00:53]} 35. Nc1 {[%emt 0:01:46]} Nf4+ {[%emt 0:00:46]} 36. Kf1 {[%emt 0:00:14]} Rd8 {[%emt 0:06:37]} 37. Ke1 {[%emt 0:00:05]} Nxh3 {[%emt 0:00:43]} 38. Be3 {[%emt 0:00:47]} Rxd1+ {[%emt 0:01:45]} 39. Kxd1 {[%emt 0:00:03]} Ng5 {[%emt 0:03:46]} 40. Nd3 {[%emt 0:00:00]} Ne6 {[%emt 0:00:00]} 41. Ke2 {[%emt 0:16:18]} Bd4 {[%emt 0:07:19]} 42. b4 {[%emt 0:02:58]} Bc3 {[%emt 0:03:37]} 43. Kf3 {[%emt 0:04:33]} Kf6 {[%emt 0:00:58]} 44. Kg2 {[%emt 0:04:50]} Kf5 {[%emt 0:02:01]} 45. f3 {[%emt 0:00:06]} g5 {[%emt 0:01:05]} 46. Kf1 {[%emt 0:03:14]} h5 {[%emt 0:00:40]} 47. Kg2 {[%emt 0:01:53]} Nf8 {[%emt 0:05:56]} 48. Bf2 {[%emt 0:00:26]} Ng6 {[%emt 0:01:14]} 49. Be1 {[%emt 0:01:13]} Bxe1 {[%emt 0:00:32]} 50. Nxe1 {[%emt 0:00:04]} Nf4+ {[%emt 0:00:19]} 51. Kf2 {[%emt 0:00:35]} Ke5 {[%emt 0:00:45]} 52. Nc2 {[%emt 0:00:19]} h4 {[%emt 0:00:42]} 53. Ne3 {[%emt 0:01:52]} Nd3+ {[%emt 0:00:32]} 0-1

[Event "21st Sants Open 2019"]
[Site "Cotxeres de Sants"]
[Date "2019.08.25"]
[Round "3.14"]
[White "Gines Esteo, Pedro Antonio"]
[Black "Yordanov	, Lachezar"]
[Result "1-0"]
[ECO "A14"]
[WhiteElo "2417"]
[BlackElo "2281"]
[Annotator "NA"]
[PlyCount "71"]
[EventDate "2019.08.22"]
[EventType "swiss"]
[EventCountry "ESP"]
[SourceTitle "playchess.com"]
[Source "ChessBase"]
[SourceQuality "1"]
[TimeControl "40/5400+30:1800+30"]

1. Nf3 {[%emt 0:01:35]} Nf6 {[%emt 0:00:00]} 2. g3 {[%emt 0:00:08]} d5 {[%emt 0:00:41]} 3. Bg2 {[%emt 0:00:11]} e6 {[%emt 0:00:12]} 4. O-O {[%emt 0:00:07]} Be7 {[%emt 0:00:10]} 5. c4 {[%emt 0:03:39]} O-O {[%emt 0:00:11]} 6. b3 {[%emt 0:00:19]} c5 {[%emt 0:00:13]} 7. Bb2 {[%emt 0:01:39]} Nc6 {[%emt 0:00:20]} 8. e3 {[%emt 0:07:03]} b6 {[%emt 0:01:08]} 9. Nc3 {[%emt 0:07:31]} Bb7 {[%emt 0:00:33]} 10. cxd5 {[%emt 0:00:27]} Nxd5 {[%emt 0:02:37]} 11. Nxd5 {[%emt 0:00:26]} Qxd5 {[%emt 0:00:41]} 12. Ne5 {[%emt 0:02:26]} Qd6 {[%emt 0:00:13]} 13. Nc4 Qd7 {[%emt 0:02:25]} 14. Qg4 {[%emt 0:00:17]} f6 {[%emt 0:00:36]} 15. d4 {[%emt 0:00:20]} cxd4 {[%emt 0:08:28]} 16. exd4 {[%emt 0:03:32]} Nd8 {[%emt 0:04:04]} 17. d5 {[%emt 0:00:22]} Bxd5 {[%emt 0:09:34]} 18. Rad1 {[%emt 0:04:26]} Qc8 {[%emt 0:01:14]} 19. Rxd5 {[%emt 0:11:20]} exd5 {[%emt 0:00:52]} 20. Bxd5+ {[%emt 0:00:13]} Nf7 {[%emt 0:00:06]} 21. Qh5 Bc5 22. Re1 {[%emt 0:34:27]} Qc7 {[%emt 0:10:43]} 23. Re4 {[%emt 0:08:49]} Kh8 {[%emt 0:02:18]} 24. Rh4 {[%emt 0:02:41]} Ng5 {[%emt 0:00:39]} 25. Ne5 {[%emt 0:01:27]} fxe5 {[%emt 0:02:13]} 26. Qxg5 {[%emt 0:00:07]} Bxf2+ {[%emt 0:02:03]} 27. Kh1 {[%emt 0:02:39]} Qc2 {[%emt 0:00:07]} 28. Be4 {[%emt 0:03:38]} Qd1+ {[%emt 0:00:15]} 29. Kg2 {[%emt 0:00:02]} Qg1+ {[%emt 0:00:59]} 30. Kh3 {[%emt 0:00:01]} Qf1+ {[%emt 0:00:09]} 31. Bg2 {[%emt 0:00:33]} Qd3 32. Qxe5 Qd7+ {[%emt 0:10:38]} 33. Rg4 {[%emt 0:02:29]} Rf5 {[%emt 0:00:23]} 34. Qxg7+ {[%emt 0:01:27]} Qxg7 {[%emt 0:00:05]} 35. Rxg7 {[%emt 0:01:11]} Raf8 {[%emt 0:00:22]} 36. Rg6+ {[%emt 0:00:18]} 1-0

[Event "21st Sants Open 2019"]
[Site "Cotxeres de Sants"]
[Date "2019.08.25"]
[Round "3.15"]
[White "Rodriguez Regull, German"]
[Black "Ruiz Soria, Adria"]
[Result "0-1"]
[ECO "C02"]
[WhiteElo "1944"]
[BlackElo "1862"]
[Annotator "NA"]
[PlyCount "94"]
[EventDate "2019.08.22"]
[EventType "swiss"]
[EventCountry "ESP"]
[SourceTitle "playchess.com"]
[Source "ChessBase"]
[SourceQuality "1"]
[TimeControl "40/5400+30:1800+30"]

1. e4 {[%emt 0:00:00]} e6 {[%emt 0:00:00]} 2. d4 {[%emt 0:02:16]} d5 {[%emt 0:00:00]} 3. e5 {[%emt 0:00:22]} c5 {[%emt 0:00:00]} 4. dxc5 {[%emt 0:00:22]} Nc6 {[%emt 0:00:00]} 5. Nf3 {[%emt 0:02:02]} Bxc5 {[%emt 0:00:00]} 6. Bd3 {[%emt 0:00:23]} f6 {[%emt 0:01:59]} 7. Qe2 {[%emt 0:00:37]} fxe5 {[%emt 0:00:12]} 8. Nxe5 {[%emt 0:00:07]} Nxe5 {[%emt 0:00:08]} 9. Qxe5 {[%emt 0:00:16]} Nf6 {[%emt 0:00:12]} 10. O-O {[%emt 0:11:13]} O-O {[%emt 0:00:31]} 11. Qe2 {[%emt 0:04:29]} Qb6 {[%emt 0:18:25]} 12. Nd2 {[%emt 0:00:34]} e5 {[%emt 0:07:54]} 13. Qxe5 {[%emt 0:03:48]} Ng4 {[%emt 0:02:11]} 14. Qxd5+ {[%emt 0:03:43]} Kh8 {[%emt 0:08:13]} 15. Ne4 {[%emt 0:02:13]} Bxf2+ {[%emt 0:04:53]} 16. Kh1 {[%emt 0:00:25]} Be6 {[%emt 0:04:35]} 17. Qd6 {[%emt 0:04:41]} Qxd6 {[%emt 0:02:42]} 18. Nxd6 {[%emt 0:00:02]} Bd4 {[%emt 0:07:54]} 19. Rxf8+ {[%emt 0:01:21]} Rxf8 {[%emt 0:00:08]} 20. Ne4 {[%emt 0:00:20]} Bd5 {[%emt 0:01:00]} 21. h3 {[%emt 0:04:41]} Bxe4 {[%emt 0:02:27]} 22. hxg4 {[%emt 0:00:04]} Bxd3 {[%emt 0:00:55]} 23. cxd3 {[%emt 0:00:02]} Rf1+ {[%emt 0:00:39]} 24. Kh2 {[%emt 0:00:02]} Be3 {[%emt 0:01:28]} 25. Bxe3 {[%emt 0:00:10]} Rxa1 {[%emt 0:00:10]} 26. Bxa7 {[%emt 0:00:17]} Rxa2 {[%emt 0:00:23]} 27. Bd4 {[%emt 0:00:43]} Ra4 {[%emt 0:00:49]} 28. Bc3 {[%emt 0:00:22]} Rxg4 {[%emt 0:00:38]} 29. Kg1 {[%emt 0:03:04]} Kg8 {[%emt 0:05:27]} 30. Kf2 {[%emt 0:00:12]} Kf7 {[%emt 0:00:16]} 31. Kf3 {[%emt 0:00:15]} h5 {[%emt 0:00:23]} 32. Be5 {[%emt 0:02:23]} Ke6 {[%emt 0:01:25]} 33. d4 {[%emt 0:00:51]} Kd5 {[%emt 0:01:33]} 34. g3 {[%emt 0:00:17]} g6 {[%emt 0:04:16]} 35. Ke3 {[%emt 0:00:34]} Re4+ {[%emt 0:00:19]} 36. Kd3 {[%emt 0:00:12]} Rxe5 {[%emt 0:01:38]} 37. dxe5 {[%emt 0:00:11]} Kxe5 {[%emt 0:00:07]} 38. Ke3 {[%emt 0:01:04]} g5 {[%emt 0:01:57]} 39. Kf3 {[%emt 0:00:09]} b5 {[%emt 0:00:12]} 40. Ke3 {[%emt 0:00:00]} h4 {[%emt 0:00:00]} 41. g4 {[%emt 0:01:22]} h3 {[%emt 0:01:30]} 42. Kf3 {[%emt 0:00:06]} h2 {[%emt 0:00:07]} 43. Kg2 {[%emt 0:00:08]} Kf4 {[%emt 0:00:09]} 44. Kxh2 {[%emt 0:00:08]} Kxg4 {[%emt 0:00:07]} 45. Kg2 {[%emt 0:00:07]} b4 {[%emt 0:00:12]} 46. b3 {[%emt 0:00:13]} Kf4 {[%emt 0:00:04]} 47. Kf2 {[%emt 0:00:09]} Ke4 {[%emt 0:00:05]} 0-1

[Event "21st Sants Open 2019"]
[Site "Cotxeres de Sants"]
[Date "2019.08.25"]
[Round "3.16"]
[White "Morais Carreras, Javier"]
[Black "Oliva Llorens, Antoni"]
[Result "1-0"]
[ECO "B40"]
[WhiteElo "1939"]
[BlackElo "1820"]
[Annotator "NA"]
[PlyCount "76"]
[EventDate "2019.08.22"]
[EventType "swiss"]
[EventCountry "ESP"]
[SourceTitle "playchess.com"]
[Source "ChessBase"]
[SourceQuality "1"]
[TimeControl "40/5400+30:1800+30"]

1. e4 {[%emt 0:00:00]} c5 {[%emt 0:00:00]} 2. Nf3 {[%emt 0:00:00]} e6 {[%emt 0:00:00]} 3. d3 {[%emt 0:00:00]} Nc6 {[%emt 0:00:00]} 4. g3 {[%emt 0:00:07]} Nge7 {[%emt 0:00:20]} 5. Bg2 {[%emt 0:00:09]} g6 {[%emt 0:00:59]} 6. O-O {[%emt 0:00:12]} Bg7 {[%emt 0:00:12]} 7. Re1 {[%emt 0:01:07]} d6 {[%emt 0:00:18]} 8. c3 {[%emt 0:00:20]} O-O {[%emt 0:01:03]} 9. d4 {[%emt 0:03:51]} Rb8 {[%emt 0:01:17]} 10. Be3 {[%emt 0:06:54]} b6 {[%emt 0:01:45]} 11. Qd2 {[%emt 0:02:25]} Bb7 {[%emt 0:02:02]} 12. Bh6 {[%emt 0:00:48]} d5 {[%emt 0:01:25]} 13. e5 {[%emt 0:03:23]} Bxh6 {[%emt 0:01:46]} 14. Qxh6 {[%emt 0:00:10]} Nf5 {[%emt 0:00:08]} 15. Qf4 {[%emt 0:02:52]} Qe7 {[%emt 0:02:39]} 16. Nbd2 {[%emt 0:02:31]} cxd4 {[%emt 0:01:41]} 17. cxd4 {[%emt 0:00:26]} Qb4 {[%emt 0:00:23]} 18. Nb3 {[%emt 0:01:05]} a5 {[%emt 0:00:34]} 19. g4 {[%emt 0:01:59]} a4 {[%emt 0:03:55]} 20. gxf5 {[%emt 0:00:24]} f6 {[%emt 0:04:53]} 21. fxg6 {[%emt 0:05:18]} fxe5 {[%emt 0:03:23]} 22. Qh6 {[%emt 0:00:35]} Qe7 {[%emt 0:00:55]} 23. Qxh7+ {[%emt 0:00:34]} Qxh7 {[%emt 0:00:59]} 24. gxh7+ {[%emt 0:00:08]} Kh8 {[%emt 0:00:57]} 25. Nbd2 {[%emt 0:00:17]} e4 {[%emt 0:02:30]} 26. Ne5 {[%emt 0:00:53]} Nxe5 {[%emt 0:01:13]} 27. dxe5 {[%emt 0:00:10]} Rf5 {[%emt 0:00:51]} 28. Rac1 {[%emt 0:03:08]} Rbf8 {[%emt 0:03:13]} 29. Rc7 {[%emt 0:03:10]} Ba6 {[%emt 0:02:22]} 30. f3 {[%emt 0:06:41]} exf3 {[%emt 0:00:55]} 31. Nxf3 {[%emt 0:00:14]} Rxf3 {[%emt 0:01:06]} 32. Bxf3 {[%emt 0:00:09]} Rxf3 {[%emt 0:00:20]} 33. Re7 {[%emt 0:00:32]} Bc4 {[%emt 0:00:27]} 34. Rxe6 {[%emt 0:00:13]} d4 {[%emt 0:02:44]} 35. Rd6 {[%emt 0:00:27]} d3 {[%emt 0:02:10]} 36. e6 {[%emt 0:00:52]} Rf8 {[%emt 0:02:50]} 37. e7 {[%emt 0:00:15]} Re8 {[%emt 0:00:35]} 38. Rd8 {[%emt 0:03:21]} Bb5 {[%emt 0:00:01]} 1-0